Workbook

Sheet 업무여유도 양식
A2: (4). 업무여유도
A3: ( 참여분야 : 사업책임기술자(수질관리), 이창대
A4: (중복도 산정 기준일) | C4: 2016-08-01
A5: No. | B5: 용역명 | C5: 총사업금액 (백만원) | D5: 착수일 | E5: 준공일 | F5: 잔여 일수 | G5: 총계약 일수 | H5: 중복금액 (백만원)
A6: 1 | B6: 청양군 소하천정비종합계획수립 전략환경영향평가용역 | C6: 713 | D6: 2015-07-29 | E6: 2017-07-27 | F6: 360 | G6: 730 | H6: =ROUNDUP((SUM((C6*(F6/G6)/10))),2) -> 35.17
A7: 2 | B7: 곡교천권역 하천기본계획 전략환경영향평가용역 | C7: 733 | D7: 2015-11-12 | E7: 2017-02-03 | F7: 230 | G7: 450 | H7: =ROUNDUP((SUM((C7*(F7/G7)/10))),2) -> 37.47
B8: 계 | H8: =SUM(H6:H7) -> 72.64
A10: ( 참여분야 : 수질분야책임기술자, 최원영)
A11: (중복도 산정 기준일) | C11: 2016-08-01
A12: No. | B12: 용역명 | C12: 총사업금액 (백만원) | D12: 착수일 | E12: 준공일 | F12: 잔여 일수 | G12: 총계약 일수 | H12: 중복금액 (백만원)
A13: 1 | B13: 국도59호선 남면~정선 도로건설공사 등4개소 환경영향평가용역 | C13: 1662 | D13: 2015-02-09 | E13: 2017-01-28 | F13: 215 | G13: 720 | H13: =ROUNDUP((SUM((C13*(F13/G13)/10))),2) -> 49.63
B15: 계 | H15: =SUM(H13:H14) -> 49.63
A17: ( 참여분야 : 대기분야책임기술자, 손정호)
A18: (중복도 산정 기준일) | C18: 2016-08-01
A19: No. | B19: 용역명 | C19: 총사업금액 (백만원) | D19: 착수일 | E19: 준공일 | F19: 잔여 일수 | G19: 총계약 일수 | H19: 중복금액 (백만원)
A20: 1 | B20: 국도43호선 팔탄-봉담 등 3건 도로확장공사 소규모환경영향평가용역 | C20: 116 | D20: 2014-11-07 | E20: 2017-04-01 | F20: 243 | G20: 877 | H20: 4
A21: 2 | B21: 사천시관내국도대체우회도로(월성~대곡)건설공사 환경영향평가용역 | C21: 719 | D21: 2015-06-05 | E21: 2017-02-07 | F21: 190 | G21: 614 | H21: 23
A22: 3 | B22: 옥천~도암 건설공사 소규모영향평가용역 | C22: 112 | D22: 2015-07-08 | E22: 2016-07-22 | F22: 0 | G22: 381 | H22: 0
B23: 계 | H23: =SUM(H20:H21) -> 27
A25: ( 참여분야 : 폐기물분야책임기술자, 이삼환)
A26: (중복도 산정 기준일) | C26: 2016-08-01
A27: No. | B27: 용역명 | C27: 총사업금액 (백만원) | D27: 착수일 | E27: 준공일 | F27: 잔여 일수 | G27: 총계약 일수 | H27: 중복금액 (백만원)
A28: 1 | B28: 해당사항없음
A29: 2
A30: 3
B31: 계 | H31: =SUM(H28:H29) -> 0
A33: ( 참여분야 :소음분야책임기술자, 조경돈)
A34: (중복도 산정 기준일) | C34: 2016-08-01
A35: No. | B35: 용역명 | C35: 총사업금액 (백만원) | D35: 착수일 | E35: 준공일 | F35: 잔여 일수 | G35: 총계약 일수 | H35: 중복금액 (백만원)
A36: 1 | B36: 수도권 제2순환(김포-파주간)고속도로 건설사업 환경영향평가용역 | C36: 940 | D36: 2012-07-20 | E36: 2013-12-10 | F36: 150 | G36: 450 | H36: =ROUNDUP((SUM((C36*(F36/G36)/10))),2) -> 31.34
A37: 2
A38: 3
B39: 계 | H39: =SUM(H36:H37) -> 31.34
A41: ( 참여분야 :자연분야책임기술자,이명도)
A42: (중복도 산정 기준일) | C42: 2016-08-01
A43: No. | B43: 용역명 | C43: 총사업금액 (백만원) | D43: 착수일 | E43: 준공일 | F43: 잔여 일수 | G43: 총계약 일수 | H43: 중복금액 (백만원)
A44: 1 | B44: 해당사항없음
A45: 2
A46: 3
B47: 계 | H47: =SUM(H44:H45) -> 0
A49: ( 참여분야 :교통분야책임기술자, 이상철)
A50: (중복도 산정 기준일) | C50: 2016-08-01
A51: No. | B51: 용역명 | C51: 총사업금액 (백만원) | D51: 착수일 | E51: 준공일 | F51: 잔여 일수 | G51: 총계약 일수 | H51: 중복금액 (백만원)
A52: 1 | B52: 서창안산 고속도로 확장사업 교통영향분석.개선대책 용역 | C52: 268 | D52: 2015-01-20 | E52: 2016-09-02 | F52: =E52-C50+1 -> 33 | G52: 300 | H52: =ROUNDUP((SUM((C52*(F52/G52)/10))),2) -> 2.95
A53: 2 | B53: 부산 에코델타시티 교통영향분석 개선대책(변경)용역 | C53: 129 | D53: 2016-01-04 | E53: 2016-12-28 | F53: =E53-C50+1 -> 150 | G53: 360 | H53: =ROUNDUP((SUM((C53*(F53/G53)/10))),2) -> 5.38
A54: 3
B55: 계 | H55: =SUM(H52:H53) -> 8.33
A57: ( 참여분야 :수질분야참여기술자, 정명진)
A58: (중복도 산정 기준일) | C58: 2016-08-01
A59: No. | B59: 용역명 | C59: 총사업금액 (백만원) | D59: 착수일 | E59: 준공일 | F59: 잔여 일수 | G59: 총계약 일수 | H59: 중복금액 (백만원)
A60: 1 | B60: 해당사항없음
A61: 2
A62: 3
B63: 계 | H63: =SUM(H60:H61) -> 0
A65: ( 참여분야 :대기분야참여기술자, 엄민식)
A66: (중복도 산정 기준일) | C66: 2016-08-01
A67: No. | B67: 용역명 | C67: 총사업금액 (백만원) | D67: 착수일 | E67: 준공일 | F67: 잔여 일수 | G67: 총계약 일수 | H67: 중복금액 (백만원)
A68: 1 | B68: 수도권 제2순환(김포-파주간)고속도로 건설사업 환경영향평가용역 | C68: 940 | D68: 2012-07-20 | E68: 2013-12-10 | F68: 150 | G68: 450 | H68: =ROUNDUP((SUM((C68*(F68/G68)/10))),2) -> 31.34
A69: 2 | B69: 안동시 관내 국도대체우회도로(용상-교리1)건설공사 등 2건 환경영향평가용역 | C69: 911 | D69: 2015-06-10 | E69: 2016-09-01 | F69: 87 | G69: 450 | H69: 17.62
A70: 3 | B70: 청양군 소하천정비종합계획수립 전략환경영향평가용역 | C70: 713 | D70: 2015-07-29 | E70: 2017-07-27 | F70: 360 | G70: 730 | H70: 35.17
A71: 4 | B71: 곡교천권역 하천기본계획 전략환경영향평가용역 | C71: 733 | D71: 2015-11-12 | E71: 2017-02-03 | F71: 230 | G71: 450 | H71: 37.47
A72: 5 | B72: 제천시 소하천정비종합계획(재정비)수립 전략환경영향평가용역 | C72: 732 | D72: 2015-12-07 | E72: 2016-12-05 | F72: 126 | G72: 365 | H72: 25.27
A73: 6 | B73: 서울-세종(성남-안성)고속도로 건설사업 전략 및 환경영향평가용역 | C73: 1572 | D73: 2016-02-02 | E73: 2017-09-23 | F73: 365 | G73: 600 | H73: 95.63
B74: 계 | H74: =SUM(H68:H73) -> 242.5
A76: ( 참여분야 :대기분야참여기술자, 엄민식)
A77: (중복도 산정 기준일) | C77: 2016-08-01
A78: No. | B78: 용역명 | C78: 총사업금액 (백만원) | D78: 착수일 | E78: 준공일 | F78: 잔여 일수 | G78: 총계약 일수 | H78: 중복금액 (백만원)
A79: 1 | B79: 제천시 소하천정비종합계획(재정비)수립 전략환경영향평가용역 | C79: 732 | D79: 2015-12-07 | E79: 2016-12-05 | F79: 126 | G79: 365 | H79: =ROUNDUP((SUM((C79*(F79/G79)/10))),2) -> 25.27
B82: 계 | H82: =SUM(H79:H79) -> 25.27
A84: ( 참여분야 :소음분야참여기술자, 강선준)
A85: (중복도 산정 기준일) | C85: 2016-08-01
A86: No. | B86: 용역명 | C86: 총사업금액 (백만원) | D86: 착수일 | E86: 준공일 | F86: 잔여 일수 | G86: 총계약 일수 | H86: 중복금액 (백만원)
A87: 1 | B87: 수도권 제2순환(김포-파주간)고속도로 건설사업 환경영향평가용역 | C87: 940 | D87: 2012-07-20 | E87: 2013-12-10 | F87: 150 | G87: 450 | H87: =ROUNDUP((SUM((C87*(F87/G87)/10))),2) -> 31.34
B90: 계 | H90: =SUM(H87:H87) -> 31.34
A92: ( 참여분야 :자연분야참여기술자, 서석민)
A93: (중복도 산정 기준일) | C93: 2016-08-01
A94: No. | B94: 용역명 | C94: 총사업금액 (백만원) | D94: 착수일 | E94: 준공일 | F94: 잔여 일수 | G94: 총계약 일수 | H94: 중복금액 (백만원)
A95: 1 | B95: 해당사항없음
B98: 계 | H98: =SUM(H95:H95) -> 0
A100: ( 참여분야 :교통분야참여기술자, 장시현)
A101: (중복도 산정 기준일) | C101: 2016-08-01
A102: No. | B102: 용역명 | C102: 총사업금액 (백만원) | D102: 착수일 | E102: 준공일 | F102: 잔여 일수 | G102: 총계약 일수 | H102: 중복금액 (백만원)
A103: 1 | B103: 고성-통영 국도건설공사 교통영향분석개선대책수립용역 | C103: 269 | D103: 2014-12-10 | E103: 2016-06-30 | F103: 0 | G103: 569 | H103: =ROUNDUP((SUM((C103*(F103/G103)/10))),2) -> 0
A104: 2 | B104: 국도59호선 남면~정선 도로건설공사 등 2개소 교통영향분석.개선대책수립용역 | C104: 150 | D104: 2015-02-26 | E104: 2017-02-14 | F104: =E104-C101+1 -> 198 | G104: 720 | H104: =ROUNDUP((SUM((C104*(F104/G104)/10))),2) -> 4.13
A105: 3 | B105: 부산 에코델타시티 교통영향분석 개선대책(변경)용역 | C105: 129 | D105: 2016-01-04 | E105: 2016-12-28 | F105: =E105-C101+1 -> 150 | G105: 360 | H105: =ROUNDUP((SUM((C105*(F105/G105)/10))),2) -> 5.38
B106: 계 | H106: =SUM(H103:H105) -> 9.51
